bitfinex/quotes_BTCUSD_20240820
["timestamp","ask_amount","ask_price","bid_price","bid_amount"]
[1724155584480,0.14254295,60682.0,60678.0,0.0009075]
[1724155584481,0.29500596,60682.0,60678.0,0.0009075]
[1724155584682,0.06006711,60682.0,60678.0,0.0009075]
[1724155584886,0.19190211,60682.0,60678.0,0.0009075]
[1724155585138,0.19190211,60682.0,60679.0,0.02768545]
[1724155585139,0.19190111,60682.0,60679.0,0.02768545]
[1724155585305,0.01070895,60682.0,60681.0,0.214536]
[1724155585484,0.00670895,60682.0,60681.0,0.214536]
[1724155585685,0.00570895,60682.0,60681.0,0.37048539]
[1724155585888,0.00670895,60682.0,60681.0,0.37048539]
[1724155586089,0.001,60682.0,60681.0,0.37048539]
[1724155586490,0.04936039,60684.0,60682.0,0.0794]
[1724155586696,0.04936039,60684.0,60683.0,0.18811433]
[1724155587111,0.15246166,60684.0,60683.0,0.18811433]
[1724155587611,0.15446166,60684.0,60683.0,0.18811433]
[1724155588222,0.15846166,60684.0,60683.0,0.18811433]
[1724155589045,0.15646166,60684.0,60683.0,0.18811433]
[1724155589447,0.15846166,60684.0,60683.0,0.18811433]
[1724155590457,0.10910127,60684.0,60683.0,0.18811433]
[1724155591484,0.18314185,60684.0,60683.0,0.18811433]
[1724155593501,0.10910127,60684.0,60683.0,0.18811433]
[1724155594485,0.20782205,60684.0,60683.0,0.18811433]
[1724155595025,0.49480555,60684.0,60683.0,0.18811433]
[1724155595387,0.49563055,60684.0,60683.0,0.18811433]
[1724155596573,0.52031074,60684.0,60683.0,0.18811433]
[1724155596997,0.51631074,60684.0,60683.0,0.18811433]
[1724155597398,0.52031074,60684.0,60683.0,0.18811433]
[1724155597981,0.52331074,60684.0,60683.0,0.18811433]
[1724155598792,0.51431074,60684.0,60683.0,0.18811433]
[1724155599550,0.51631074,60684.0,60683.0,0.18811433]
[1724155599941,0.51431074,60684.0,60683.0,0.18811433]
[1724155600362,0.52487067,60684.0,60683.0,1.07317931]
[1724155600482,0.01138493,60684.0,60683.0,1.32812998]
[1724155600680,0.00638493,60684.0,60683.0,1.32812998]
[1724155600879,0.00638493,60684.0,60683.0,1.47516302]
[1724155601140,0.001825,60684.0,60683.0,1.47516302]
[1724155601986,0.000825,60684.0,60683.0,1.47516302]
[1724155602159,0.000825,60684.0,60683.0,1.21149802]
[1724155602464,0.000825,60684.0,60683.0,1.21449802]
[1724155602694,0.000825,60684.0,60683.0,1.21549802]
[1724155603385,0.000825,60684.0,60683.0,1.21449802]
[1724155603593,0.000825,60684.0,60683.0,1.21749802]
[1724155604002,0.000825,60684.0,60683.0,1.22149802]
[1724155605100,0.000825,60684.0,60683.0,0.39833304]
[1724155605412,0.00609146,60684.0,60683.0,0.54713498]
[1724155605596,0.000825,60684.0,60683.0,0.81079998]
[1724155605796,0.00609146,60684.0,60683.0,0.81079998]
[1724155606052,0.000825,60684.0,60683.0,0.81079998]
[1724155606240,0.000825,60684.0,60683.0,0.95156215]
[1724155612779,0.000825,60684.0,60683.0,0.68789715]
[1724155613455,0.000825,60684.0,60683.0,1.21522715]
[1724155613798,0.000825,60684.0,60683.0,2.04522715]
[1724155614030,0.000825,60684.0,60683.0,2.30889215]
[1724155614205,0.000825,60684.0,60683.0,2.92255715]
[1724155614411,0.000825,60684.0,60683.0,2.92355715]
[1724155614633,0.000825,60684.0,60683.0,2.94055715]
[1724155614830,0.000825,60684.0,60683.0,2.93855715]
[1724155615068,0.000825,60684.0,60683.0,2.13455715]
[1724155615262,0.000825,60684.0,60683.0,2.13655715]
[1724155615478,0.000825,60684.0,60683.0,2.12455715]
[1724155616297,0.000825,60684.0,60683.0,1.48289215]
[1724155616512,0.000825,60684.0,60683.0,1.46889215]
[1724155616968,0.000825,60684.0,60683.0,1.48289215]
[1724155617179,0.000825,60684.0,60683.0,1.49689215]
[1724155618542,0.000825,60684.0,60683.0,1.49664833]
[1724155620350,0.000825,60684.0,60683.0,1.84664833]
[1724155622526,0.000825,60684.0,60683.0,1.35588616]
[1724155623863,0.000825,60684.0,60683.0,1.19398616]
[1724155625571,0.000825,60684.0,60683.0,1.29398616]
[1724155631068,0.000825,60684.0,60683.0,1.35868616]
[1724155632262,0.00062666,60684.0,60683.0,1.35868616]
[1724155632647,0.00062666,60684.0,60683.0,1.501556]
[1724155633844,0.00062666,60684.0,60683.0,1.5024635]
[1724155637966,0.00062666,60684.0,60683.0,1.7661285]
[1724155638787,0.00062666,60684.0,60683.0,1.7711285]
[1724155638988,0.00062666,60684.0,60683.0,1.7671285]
[1724155639208,0.00062666,60684.0,60683.0,1.7711285]
[1724155639678,0.00062666,60684.0,60683.0,2.0347935]
[1724155639804,0.00062666,60684.0,60683.0,2.0577935]
[1724155640408,0.00062666,60684.0,60683.0,2.4077935]
[1724155641072,0.00062666,60684.0,60683.0,2.4037935]
[1724155641274,0.00062666,60684.0,60683.0,2.0537935]
[1724155641633,0.10080166,60699.0,60698.0,0.3954]
[1724155641837,0.15014505,60699.0,60698.0,0.1318]
[1724155642058,0.17481674,60699.0,60698.0,0.1318]
[1724155642260,0.18280278,60699.0,60698.0,0.15948545]
[1724155643709,0.18380278,60699.0,60698.0,0.15948545]
[1724155644265,0.1097877,60699.0,60698.0,0.15948545]
[1724155644810,0.1097877,60699.0,60698.0,0.02768545]
[1724155645037,0.41391232,60699.0,60698.0,0.02768545]
[1724155645187,0.5125991,60699.0,60698.0,0.02768545]
[1724155646196,0.50564763,60699.0,60698.0,0.02768545]
[1724155647138,0.60872718,60699.0,60698.0,0.02768545]
[1724155647349,0.50564763,60699.0,60698.0,0.02768545]
[1724155648405,0.60872631,60699.0,60698.0,0.02768545]
[1724155648629,0.47114763,60699.0,60698.0,0.02768545]
[1724155648817,0.0752877,60699.0,60698.0,0.02768545]
[1724155649019,0.0138877,60699.0,60698.0,0.02768545]
[1724155649219,0.08795339,60699.0,60698.0,0.02768545]
[1724155649426,0.0138877,60699.0,60698.0,0.02768545]
[1724155649796,0.01158538,60699.0,60698.0,0.02768545]
[1724155649933,0.10898538,60699.0,60698.0,0.02768545]
[1724155650138,0.31080579,60699.0,60698.0,0.02768545]
[1724155650357,0.20772685,60699.0,60698.0,0.02768545]
[1724155650764,0.60779248,60699.0,60698.0,0.02768545]
[1724155650935,0.50471381,60699.0,60698.0,0.02768545]
[1724155651433,0.60779276,60699.0,60698.0,0.02768545]
[1724155651619,0.50903069,60699.0,60698.0,0.02768545]
[1724155651859,0.47453069,60699.0,60698.0,0.02768545]
[1724155652197,0.41163069,60699.0,60698.0,0.02768545]
[1724155652431,0.41163069,60699.0,60698.0,0.92598843]
[1724155652653,0.51040238,60699.0,60698.0,0.92598843]
[1724155653562,0.30855174,60699.0,60698.0,0.92598843]
[1724155653777,0.01158538,60699.0,60698.0,0.92598843]
[1724155654023,0.00359934,60699.0,60698.0,0.92598843]
[1724155654464,0.30146049,60699.0,60698.0,0.92598843]
[1724155654726,0.00359934,60699.0,60698.0,0.92598843]
[1724155654943,0.0131307,60699.0,60698.0,0.92598843]
[1724155655146,0.00359934,60699.0,60698.0,0.92598843]
[1724155655314,0.30140145,60699.0,60698.0,0.92598843]
[1724155655685,0.30936443,60699.0,60698.0,0.92598843]
[1724155656299,0.40813612,60699.0,60698.0,0.92598843]
[1724155657345,0.40813612,60699.0,60698.0,0.99088843]
[1724155657635,0.01156232,60699.0,60698.0,0.99088843]
[1724155657945,0.06095776,60699.0,60698.0,0.99088843]
[1724155661097,0.01156232,60699.0,60698.0,1.35448843]
[1724155661460,0.00359934,60699.0,60698.0,1.35448843]
[1724155662073,0.00259934,60699.0,60698.0,1.35448843]
[1724155662335,0.00259934,60699.0,60698.0,1.35648843]
[1724155663500,0.00259934,60699.0,60698.0,1.35448843]
[1724155663791,0.00259934,60699.0,60698.0,1.35848843]
[1724155664398,0.00259934,60699.0,60698.0,1.35948843]
[1724155664603,0.00259934,60699.0,60698.0,1.36648843]
[1724155664795,0.00259934,60699.0,60698.0,1.36148843]
[1724155664997,0.00259934,60699.0,60698.0,1.36748843]
[1724155665229,0.00259934,60699.0,60698.0,1.36048843]
[1724155665404,0.00259934,60699.0,60698.0,1.36448843]
[1724155666698,0.00259934,60699.0,60698.0,1.35448843]
[1724155666893,0.00259934,60699.0,60698.0,1.36148843]
[1724155667095,0.00259934,60699.0,60698.0,1.35448843]
[1724155667313,0.00259934,60699.0,60698.0,1.36548843]
[1724155667567,0.00259934,60699.0,60698.0,1.37748843]
[1724155667715,0.00259934,60699.0,60698.0,1.36648843]
[1724155668121,0.00259934,60699.0,60698.0,1.38048843]
[1724155670111,0.00259934,60699.0,60698.0,1.38139593]
[1724155672811,0.00259934,60699.0,60698.0,1.49399593]
[1724155674387,0.00259934,60699.0,60698.0,1.38139593]
[1724155676761,0.00259934,60699.0,60698.0,1.05289593]
[1724155678060,0.00259934,60699.0,60698.0,0.28639295]
[1724155678404,0.01461027,60699.0,60698.0,0.28639295]
[1724155678677,0.01461027,60699.0,60698.0,0.15459295]
[1724155679486,0.01461027,60699.0,60698.0,0.14059295]
[1724155679639,0.01461027,60699.0,60698.0,0.27039295]
[1724155680045,0.01461027,60699.0,60698.0,0.27739295]
[1724155680259,0.01461027,60699.0,60698.0,0.13559295]
[1724155680660,0.01461027,60699.0,60698.0,0.03559295]
[1724155681223,0.01461027,60699.0,60698.0,0.04559295]
[1724155681449,0.22711027,60699.0,60698.0,0.0179075]
[1724155681686,0.67182622,60699.0,60698.0,0.0179075]
[1724155682191,0.35890727,60699.0,60698.0,0.0179075]
[1724155683042,0.35890727,60699.0,60698.0,0.0109075]
[1724155683497,0.35890727,60699.0,60698.0,0.0009075]
[1724155683709,0.35890727,60699.0,60698.0,0.0089075]
[1724155683933,0.35890727,60699.0,60698.0,0.0139075]
[1724155684141,0.22711027,60699.0,60698.0,0.0009075]
[1724155684292,0.08001027,60699.0,60698.0,0.0009075]
[1724155684495,0.08001027,60699.0,60698.0,0.02447875]
[1724155685118,0.08001027,60699.0,60698.0,0.0029075]
[1724155685323,0.19261027,60699.0,60698.0,0.0029075]
[1724155686498,0.08001027,60699.0,60698.0,0.0029075]
[1724155686915,0.6965225,60699.0,60698.0,0.0029075]
[1724155687123,0.76107764,60699.0,60698.0,0.0029075]
[1724155687550,1.01528055,60699.0,60698.0,0.0029075]
[1724155687764,0.47278855,60699.0,60698.0,0.0029075]
[1724155687972,0.30869756,60699.0,60698.0,0.00928825]
[1724155688175,0.08763581,60699.0,60698.0,0.00928825]
[1724155688646,0.01661832,60699.0,60698.0,0.00928825]
[1724155689323,0.06596097,60699.0,60698.0,0.00928825]
[1724155689646,0.01761832,60699.0,60698.0,0.00928825]
[1724155689881,0.01461832,60699.0,60698.0,0.00928825]
[1724155690055,0.01361832,60699.0,60698.0,0.00928825]
[1724155690308,0.06296049,60699.0,60698.0,0.01028825]
[1724155690510,0.06496049,60699.0,60698.0,0.01028825]
[1724155691059,0.01561832,60699.0,60698.0,0.01028825]
[1724155692103,0.01561832,60699.0,60698.0,0.40568825]
[1724155692301,0.01561832,60699.0,60698.0,0.14208825]
[1724155692970,0.01561832,60699.0,60698.0,0.66928825]
[1724155693188,0.01561832,60699.0,60698.0,0.73188825]
[1724155693922,0.002,60699.0,60698.0,0.73188825]
[1724155694173,0.002,60699.0,60698.0,0.89589123]
[1724155694394,0.002,60699.0,60698.0,0.97829123]
[1724155695284,0.002825,60699.0,60698.0,0.97829123]
[1724155696479,0.01838424,60699.0,60698.0,0.97829123]
[1724155699267,0.01838424,60699.0,60698.0,0.71469123]
[1724155704180,0.01838424,60699.0,60698.0,1.24189123]
[1724155704379,0.002825,60699.0,60698.0,0.97829123]
[1724155705726,0.002825,60699.0,60698.0,1.07829123]
[1724155705884,0.002825,60699.0,60698.0,1.34189123]
[1724155706327,0.002825,60699.0,60698.0,1.34089123]
[1724155706697,0.000825,60699.0,60698.0,1.34189123]
[1724155707685,0.000825,60699.0,60698.0,1.08729123]
[1724155707829,0.000825,60699.0,60698.0,1.03069123]
[1724155712238,0.000825,60699.0,60698.0,1.09529123]
[1724155712843,0.000825,60699.0,60698.0,1.35889123]
[1724155713051,0.000825,60699.0,60698.0,1.09529123]
[1724155714458,0.000825,60699.0,60698.0,1.35889123]
[1724155720278,0.000825,60699.0,60698.0,1.62249123]
[1724155720813,0.000825,60699.0,60698.0,1.60649123]
[1724155721030,0.000825,60699.0,60698.0,1.61549123]
[1724155721263,0.000825,60699.0,60698.0,1.60649123]
[1724155721790,0.000825,60699.0,60698.0,1.62049123]
[1724155721987,0.000825,60699.0,60698.0,1.63149123]
[1724155722815,0.000825,60699.0,60698.0,1.62049123]
[1724155723050,0.000825,60699.0,60698.0,1.97049123]
[1724155723295,0.000825,60699.0,60698.0,1.98449123]
[1724155723537,0.000825,60699.0,60698.0,1.97049123]
[1724155723992,0.000825,60699.0,60698.0,1.63449123]
[1724155724240,0.000825,60699.0,60698.0,1.62049123]
[1724155724731,0.000825,60699.0,60698.0,1.63449123]
[1724155724966,0.000825,60699.0,60698.0,1.62049123]
[1724155725200,0.000825,60699.0,60698.0,1.60649123]
[1724155725450,0.000825,60699.0,60698.0,2.41649123]
[1724155725748,0.49249154,60719.0,60718.0,0.835826]
[1724155726029,0.49249154,60719.0,60718.0,1.08102898]
[1724155726278,0.0002,60719.0,60718.0,1.18128498]
[1724155726514,0.0002,60719.0,60718.0,1.06868498]
[1724155726757,0.0002,60719.0,60718.0,1.11203605]
[1724155727236,0.0347,60719.0,60718.0,0.20805107]
[1724155727479,0.0347,60719.0,60713.0,0.0771]
[1724155727480,0.11630563,60719.0,60717.0,0.131757]
[1724155727744,0.11630563,60719.0,60718.0,0.005]
[1724155727745,0.22890563,60719.0,60718.0,0.005]
[1724155728328,0.62416763,60719.0,60718.0,0.005]
[1724155728874,0.62416763,60719.0,60718.0,0.011]
[1724155729330,0.131757,60718.0,60710.0,0.131773]
[1724155729581,0.131757,60718.0,60711.0,0.04785253]
[1724155729796,0.131757,60718.0,60717.0,0.005]
[1724155730034,0.263518,60717.0,60711.0,0.04785253]
[1724155730263,0.263518,60717.0,60709.0,0.00019828]
[1724155730264,0.1126,60713.0,60709.0,0.13197328]
[1724155730472,0.1126,60713.0,60709.0,0.29597626]
[1724155730908,0.1126,60713.0,60710.0,0.131772]
[1724155731116,0.1126,60713.0,60711.0,0.006]
[1724155732378,0.131771,60711.0,60710.0,0.008]
[1724155732582,0.307371,60711.0,60710.0,0.008]
[1724155732787,0.131774,60710.0,60709.0,0.00819828]
[1724155732992,0.395322,60710.0,60709.0,0.00019828]
[1724155733410,0.194774,60710.0,60709.0,0.00019828]
[1724155733611,0.458322,60710.0,60709.0,0.00019828]
[1724155735475,0.21052051,60710.0,60709.0,0.00019828]
[1724155736749,0.07874651,60710.0,60709.0,0.00019828]
[1724155736979,0.01574651,60710.0,60709.0,0.01339651]
[1724155737414,0.0661,60713.0,60709.0,0.01339651]
[1724155737674,0.01571288,60710.0,60709.0,0.01339651]
[1724155737881,0.0661,60713.0,60709.0,0.01339651]
[1724155738093,0.01589114,60712.0,60710.0,0.05531365]
[1724155738302,0.04928481,60714.0,60710.0,0.05531365]
[1724155738509,0.04928481,60714.0,60711.0,0.131771]
[1724155739794,0.04928481,60714.0,60711.0,0.132771]
[1724155740003,0.04928481,60714.0,60712.0,0.05461775]
[1724155740445,0.18104281,60717.0,60712.0,0.05461775]
[1724155740677,0.18104281,60717.0,60713.0,0.0772]
[1724155740890,0.18104978,60717.0,60713.0,0.0772]
[1724155741130,0.18104978,60717.0,60714.0,0.03340432]
[1724155742092,0.04929178,60717.0,60714.0,0.03340432]
[1724155742601,0.1126,60718.0,60714.0,0.03340432]
[1724155742884,0.001025,60719.0,60714.0,0.23266832]
[1724155743126,0.001025,60719.0,60715.0,0.08920073]
[1724155743628,0.001025,60719.0,60715.0,0.22096273]
[1724155744129,0.001025,60719.0,60715.0,0.08920073]
[1724155744405,0.001025,60719.0,60715.0,0.22096273]
[1724155745166,0.001025,60719.0,60716.0,0.13176]
[1724155745394,0.001025,60719.0,60717.0,0.09349784]
[1724155746032,0.001025,60719.0,60718.0,0.131756]
[1724155746247,0.113625,60719.0,60717.0,0.131758]
[1724155746879,0.0644,60717.0,60714.0,0.0009075]
[1724155747085,0.0644,60717.0,60714.0,0.0006515]
[1724155747086,0.1126,60715.0,60714.0,0.0006515]
[1724155747977,0.865915,60715.0,60714.0,0.0006515]
[1724155748194,0.9699685,60715.0,60714.0,0.0006515]
[1724155748405,1.2334945,60715.0,60714.0,0.0006515]
[1724155748615,1.50319403,60715.0,60714.0,0.0006515]
[1724155748829,1.50106186,60715.0,60714.0,0.0006515]
[1724155749477,1.62434992,60715.0,60714.0,0.0006515]
[1724155749696,1.51174992,60715.0,60714.0,0.0006515]
[1724155749922,1.62434992,60715.0,60714.0,0.0006515]
[1724155750171,1.50106186,60715.0,60714.0,0.0006515]
[1724155750388,1.51053579,60715.0,60714.0,0.0006515]
[1724155750597,1.63382385,60715.0,60714.0,0.0006515]
[1724155753335,1.6336931,60715.0,60714.0,0.0006515]
[1724155754176,1.51037045,60715.0,60714.0,0.0006515]
[1724155757910,1.50913618,60715.0,60714.0,0.0006515]
[1724155758145,1.67411496,60715.0,60714.0,0.0006515]
[1724155758385,2.10364394,60715.0,60714.0,0.0006515]
[1724155758597,2.44765461,60715.0,60714.0,0.0006515]
[1724155758812,2.44765461,60715.0,60714.0,5e-08]
[1724155759256,2.44965461,60715.0,60714.0,5e-08]
[1724155759464,2.44965461,60715.0,60710.0,0.0009075]
[1724155759465,1.397743,60711.0,60710.0,0.0009075]
[1724155759672,1.56174598,60711.0,60710.0,0.0009075]
[1724155759886,2.2759779,60711.0,60710.0,0.0009075]
[1724155760090,2.28540146,60711.0,60710.0,0.0009075]
[1724155760299,2.28540146,60711.0,60710.0,0.00065183]
[1724155760593,2.45450146,60711.0,60710.0,0.00065183]
[1724155760820,2.45250146,60711.0,60710.0,0.00165183]
[1724155761047,2.45450146,60711.0,60710.0,0.00165183]
[1724155762127,2.45850146,60711.0,60710.0,0.00265183]
[1724155762334,2.44557943,60711.0,60710.0,0.00265183]
[1724155762547,2.59356649,60711.0,60710.0,0.00265183]
[1724155762753,1.97130654,60711.0,60710.0,0.00265183]
[1724155762956,2.10507866,60711.0,60710.0,0.00265183]
[1724155763367,2.26905744,60711.0,60710.0,0.00265183]
[1724155763581,2.26885919,60711.0,60710.0,0.00265183]
[1724155763784,2.10488041,60711.0,60710.0,0.00265183]
[1724155766301,2.10635754,60711.0,60710.0,0.00265183]
[1724155766719,1.64431156,60711.0,60710.0,0.00265183]
[1724155766960,1.30091156,60711.0,60710.0,0.00265183]
[1724155767586,1.29691156,60711.0,60710.0,0.00165183]
[1724155767799,1.4200896,60711.0,60710.0,0.00165183]
[1724155768010,1.4220896,60711.0,60710.0,0.00265183]
[1724155768250,1.29891156,60711.0,60710.0,0.00265183]
[1724155768681,1.29891156,60711.0,60710.0,0.00165183]
[1724155769092,1.42608294,60711.0,60710.0,0.00265183]
[1724155769544,1.30291156,60711.0,60710.0,0.00265183]
[1724155770376,1.03936856,60711.0,60710.0,0.00265183]
[1724155770609,0.19237578,60711.0,60710.0,0.14385183]
[1724155770816,0.25024806,60711.0,60710.0,0.17141541]
[1724155771028,0.2995128,60711.0,60710.0,0.14385183]
[1724155772089,0.2975128,60711.0,60710.0,0.14285183]
[1724155772289,0.5610558,60711.0,60710.0,0.14285183]
[1724155772491,0.5610558,60711.0,60710.0,0.14185183]
[1724155772492,0.58168978,60711.0,60710.0,0.14185183]
[1724155772622,0.58568978,60711.0,60710.0,0.14285183]
[1724155772823,0.58768978,60711.0,60710.0,0.14385183]
[1724155773448,0.51379106,60711.0,60710.0,0.14385183]
[1724155773856,0.50979106,60711.0,60710.0,0.14285183]
[1724155774040,0.24624806,60711.0,60710.0,0.14285183]
[1724155774448,0.51431244,60711.0,60710.0,0.14285183]
[1724155774651,0.48307523,60711.0,60710.0,0.14385183]
[1724155775055,0.48107523,60711.0,60710.0,0.14285183]
[1724155775461,0.48307523,60711.0,60710.0,0.14285183]
[1724155776287,0.48317001,60711.0,60710.0,0.14285183]
[1724155776674,0.48317001,60711.0,60710.0,0.18349371]
[1724155777918,0.48117001,60711.0,60710.0,0.14285183]
[1724155778334,0.48217001,60711.0,60710.0,0.14285183]
[1724155778962,0.61294101,60711.0,60710.0,0.14285183]
[1724155779186,0.60894101,60711.0,60710.0,0.07725183]
[1724155779631,1.14002701,60711.0,60710.0,0.00165183]
[1724155779850,1.04140367,60711.0,60710.0,0.00165183]
[1724155780303,1.04340367,60711.0,60710.0,0.00139616]
[1724155780548,1.15610367,60711.0,60710.0,0.00139616]
[1724155780805,1.15610367,60711.0,60710.0,0.00039616]
[1724155781015,1.15110367,60711.0,60710.0,0.00039616]
[1724155781962,1.15192867,60711.0,60710.0,0.00039616]
[1724155782377,1.15592867,60711.0,60710.0,0.00039616]
[1724155785948,1.04322867,60711.0,60710.0,0.00039616]
[1724155786184,1.15592867,60711.0,60710.0,0.08229616]
[1724155786608,1.27920784,60711.0,60710.0,0.08229616]
[1724155787846,1.01566484,60711.0,60710.0,0.14489616]
[1724155789490,1.01566484,60711.0,60710.0,0.08229616]
[1724155790319,1.27920784,60711.0,60710.0,0.08229616]
[1724155790732,1.15592867,60711.0,60710.0,0.08229616]
[1724155790948,1.15592867,60711.0,60710.0,0.00039616]
[1724155790949,1.48037167,60711.0,60710.0,0.00039616]
[1724155792023,1.82082448,60711.0,60710.0,0.00039616]
[1724155792279,1.70812448,60711.0,60710.0,0.00014049]
[1724155792484,1.82082448,60711.0,60710.0,0.00014049]
[1724155793120,1.81582448,60711.0,60710.0,0.00014049]
[1724155793346,1.81782448,60711.0,60710.0,0.00114049]
[1724155793615,1.82182448,60711.0,60710.0,0.00214049]
[1724155794428,1.49738148,60711.0,60710.0,0.00214049]
[1724155794632,1.49845633,60711.0,60710.0,0.00214049]
[1724155794854,1.30508934,60711.0,60710.0,0.00214049]
[1724155795056,1.15692867,60711.0,60710.0,0.00214049]
[1724155799201,1.15733012,60711.0,60710.0,0.00214049]
[1724155800605,0.51754412,60711.0,60710.0,0.08284049]
[1724155800813,0.51754412,60711.0,60710.0,0.14334049]
[1724155800985,0.38577312,60711.0,60710.0,0.14334049]
[1724155801586,0.484552,60711.0,60710.0,0.14334049]
[1724155801786,0.484552,60711.0,60710.0,0.22356344]
[1724155802166,0.11530206,60711.0,60710.0,0.22256344]
[1724155802370,0.18738507,60711.0,60710.0,0.22156344]
[1724155802598,0.09233157,60711.0,60710.0,0.78188842]
[1724155802798,0.09533157,60711.0,60710.0,1.04643642]
[1724155803003,0.01324856,60711.0,60710.0,1.04543642]
[1724155803204,0.06763195,60711.0,60710.0,1.04543642]
[1724155803729,0.06763195,60711.0,60710.0,1.30798442]
[1724155803730,0.01324856,60711.0,60710.0,1.30798442]
[1724155803905,0.003825,60711.0,60710.0,1.30798442]
[1724155804106,0.007825,60711.0,60710.0,1.30898442]
[1724155805198,0.007825,60711.0,60710.0,0.96521347]
[1724155805817,0.002825,60711.0,60710.0,0.96421347]
[1724155806266,0.003825,60711.0,60710.0,0.96421347]
[1724155806477,0.000825,60711.0,60710.0,0.96421347]
[1724155806678,0.000825,60711.0,60710.0,0.96621347]
[1724155806875,0.000825,60711.0,60710.0,1.09016636]
[1724155807702,0.000825,60711.0,60710.0,0.82661836]
[1724155808523,0.000825,60711.0,60710.0,0.70266547]
[1724155816581,0.000825,60711.0,60710.0,1.17891347]
[1724155816739,0.000825,60711.0,60710.0,1.93891347]
[1724155816963,0.000825,60711.0,60710.0,2.20246147]
[1724155817973,0.000825,60711.0,60710.0,2.09376147]
[1724155818180,0.000825,60711.0,60710.0,2.08976147]
[1724155818395,0.000825,60711.0,60710.0,2.25374025]
[1724155819041,0.000825,60711.0,60710.0,2.25174025]
[1724155819244,0.000825,60711.0,60710.0,2.25774025]
[1724155819782,0.000825,60711.0,60710.0,2.25174025]
[1724155819986,0.000825,60711.0,60710.0,2.25674025]
[1724155820200,0.000825,60711.0,60710.0,2.26374025]
[1724155820615,0.001825,60711.0,60710.0,2.26274025]
[1724155821220,0.001825,60711.0,60710.0,2.27574025]
[1724155828051,0.00162675,60711.0,60710.0,2.27574025]
[1724155828670,0.00162675,60711.0,60710.0,3.27574025]
[1724155834176,0.00162675,60711.0,60710.0,3.54028825]
[1724155834389,0.00162675,60711.0,60710.0,3.54428825]
[1724155835256,0.00162675,60711.0,60710.0,3.54028825]
[1724155835658,0.00162675,60711.0,60710.0,3.89428825]
[1724155835884,0.00162675,60711.0,60710.0,3.89028825]
[1724155836669,0.00162675,60711.0,60710.0,3.27574025]
[1724155839237,0.00162675,60711.0,60710.0,3.53928825]
[1724155840874,0.00162675,60711.0,60710.0,3.55928825]
[1724155841110,0.00162675,60711.0,60710.0,3.56028825]
[1724155841309,0.00162675,60711.0,60710.0,3.55928825]
[1724155844028,0.00162675,60711.0,60710.0,3.90928825]
[1724155844659,0.00162675,60711.0,60710.0,3.12928825]
[1724155844826,0.00162675,60711.0,60710.0,3.99028825]
[1724155845026,0.00162675,60711.0,60710.0,3.99228825]
[1724155846259,0.00162675,60711.0,60710.0,3.98928825]
[1724155846662,0.00162675,60711.0,60710.0,3.99028825]
[1724155847276,0.00162675,60711.0,60710.0,4.01528825]
[1724155847484,0.00162675,60711.0,60710.0,4.01728825]
[1724155847706,0.00162675,60711.0,60710.0,4.06630022]
[1724155848112,0.00162675,60711.0,60710.0,4.05330022]
[1724155848530,0.00062675,60711.0,60710.0,4.05630022]
[1724155848936,0.00062675,60711.0,60710.0,4.04230022]
[1724155849141,0.00062675,60711.0,60710.0,4.30584822]
[1724155849391,0.00062675,60711.0,60710.0,4.31984822]
[1724155850028,0.00062675,60711.0,60710.0,4.33384822]
[1724155850433,0.00062675,60711.0,60710.0,4.31984822]
[1724155850668,0.00062675,60711.0,60710.0,4.33384822]
[1724155850808,0.00062675,60711.0,60710.0,4.31984822]
[1724155851259,0.00062675,60711.0,60710.0,4.33384822]
[1724155851470,0.00062675,60711.0,60710.0,4.32984822]
[1724155851643,0.00062675,60711.0,60710.0,4.61124822]
[1724155852017,0.00062675,60711.0,60710.0,4.58724822]
[1724155852228,0.00062675,60711.0,60710.0,4.60124822]
[1724155852674,0.00062675,60711.0,60710.0,4.59724822]
[1724155852873,0.00062675,60711.0,60710.0,4.58324822]
[1724155853483,0.00062675,60711.0,60710.0,4.59724822]
[1724155853685,0.00062675,60711.0,60710.0,4.53423625]
[1724155853926,0.00062675,60711.0,60710.0,4.58324822]
[1724155854138,0.00062675,60711.0,60710.0,4.54823625]
[1724155854451,0.00062675,60711.0,60710.0,4.56223625]
[1724155854878,0.00062675,60711.0,60710.0,4.56423625]
[1724155855030,0.00062675,60711.0,60710.0,4.56623625]
[1724155855706,0.00062675,60711.0,60710.0,4.29868825]
[1724155856423,0.00062675,60711.0,60710.0,4.61124822]
[1724155857361,0.00062675,60711.0,60710.0,4.56397925]
[1724155857545,0.00062675,60711.0,60710.0,4.34944322]
[1724155857775,0.00062675,60711.0,60710.0,4.30043125]
[1724155857977,0.00062675,60711.0,60710.0,4.29843125]
[1724155858207,0.00062675,60711.0,60710.0,3.92443125]
[1724155858409,0.00062675,60711.0,60710.0,3.64303125]
[1724155859039,0.00062675,60711.0,60710.0,3.64403125]
[1724155859478,0.00062675,60711.0,60710.0,3.64303125]
[1724155860370,0.00062675,60711.0,60710.0,3.64403125]
[1724155860573,0.00062675,60711.0,60710.0,3.75663125]
[1724155860989,0.00062675,60711.0,60710.0,4.10863125]
[1724155861192,0.00062675,60711.0,60710.0,4.12863125]
[1724155861397,0.00062675,60711.0,60710.0,4.12963125]
[1724155861600,0.00062675,60711.0,60710.0,4.12863125]
[1724155861802,0.00062675,60711.0,60710.0,3.99303125]
[1724155862041,0.00062675,60711.0,60710.0,3.75563125]
[1724155862447,0.00062675,60711.0,60710.0,4.10563125]
[1724155862649,0.00062675,60711.0,60710.0,4.10663125]
[1724155863050,0.00062675,60711.0,60710.0,4.13163125]
[1724155863874,0.00062675,60711.0,60710.0,4.39517925]
[1724155864709,0.00062675,60711.0,60710.0,4.39808675]
[1724155865149,0.00062675,60711.0,60710.0,4.44720547]
[1724155865576,0.00062675,60711.0,60710.0,4.44720586]
[1724155865781,0.00062675,60711.0,60710.0,4.44320586]
[1724155865981,0.00062675,60711.0,60710.0,4.39408675]
[1724155866431,0.00062675,60711.0,60710.0,4.13053875]
[1724155867672,0.00062675,60711.0,60710.0,4.01693875]
[1724155867867,0.00062675,60711.0,60710.0,4.10653875]
[1724155869537,0.00062675,60711.0,60710.0,4.04307286]
[1724155869772,0.00062675,60711.0,60710.0,4.10653875]
[1724155870435,0.00062675,60711.0,60710.0,4.15567286]
[1724155871267,0.00062675,60711.0,60710.0,4.15667286]
[1724155871477,0.00062675,60711.0,60710.0,4.18167286]
[1724155871688,0.00062675,60711.0,60710.0,4.16767286]
[1724155871892,0.00062675,60711.0,60710.0,4.15367286]
[1724155872102,0.00062675,60711.0,60710.0,4.41722086]
[1724155872310,0.00062675,60711.0,60710.0,4.16767286]
[1724155872516,0.00062675,60711.0,60710.0,4.10653875]
[1724155872727,0.00062675,60711.0,60710.0,4.58110806]
[1724155872934,0.00062675,60711.0,60710.0,4.48283983]
[1724155873348,0.00062675,60711.0,60710.0,4.49683983]
[1724155873756,0.00062675,60711.0,60710.0,4.48030244]
[1724155874165,0.00062675,60711.0,60710.0,4.50830244]